Cogmind - Beta 13 @@@ ROGUE MODE // 2024.05.29 @ 19:43:20 Player: Waste Result: Destroyed by CL-ANK with CL-ANK's Mallet Performance ------------- Evolutions (1) 500 Regions Visited (6) 1200 Robots Destroyed (60) 300 Value Destroyed (974) 974 Prototype IDs (28) 560 Alien Tech Used (0) 0 Bonus (410) 410 TOTAL SCORE: 3944 Bonus ------- Follower Combat Kills 110 Aligned with FarCom 300 Cogmind --------- Core Integrity 0/400 Matter 253/300 Energy 214/280 System Corruption 0% Temperature Warning (310) Movement Treading (480) Ox4 Location -8/Mines Parts ------- > --- POWER (1) -------- Heavy Ion Engine > --- PROPULSION (3) --- Light Treads > --- UTILITY (2) ------ Huge Storage Unit Medium Armor Plating > --- WEAPON (3) ------- Beam Cannon Light Assault Rifle > --- INVENTORY (25) --- Heavy Ion Engine Cooled Ion Engine Improved Heat Sink Improved Heat Sink Large Storage Unit Huge Storage Unit High-capacity Matter Pod (200) High-capacity Matter Pod (200) Experimental Sensor Array Light Assault Rifle Peak State ------------ > --- POWER ------------ Heavy Ion Engine > --- PROPULSION ------- Light Treads Light Treads Light Treads > --- UTILITY ---------- Improved Heat Sink Huge Storage Unit > --- WEAPON ----------- Advanced Beam Cannon Heavy Assault Rifle Heavy Assault Rifle > --- INVENTORY -------- Heavy Ion Engine Cooled Ion Engine Reinforced Deuterium Engine Light Fission Core Light Fission Core Light Treads Light Treads Light Treads Improved Heat Sink Large Storage Unit Huge Storage Unit High-capacity Matter Pod High-capacity Matter Pod High-capacity Matter Pod Experimental Sensor Array Medium Armor Plating Medium Armor Plating Medium Armor Plating Medium Armor Plating Medium Armor Plating Beam Cannon Advanced Beam Cannon Rocket Launcher [Rating: 22] Favorites ----------- Power Ion Engine Engine Ion Engine Propulsion Aluminum Leg Treads Light Treads Leg Aluminum Leg Wheel Compact Wheel Utility Huge Storage Unit Device Improved Heat Sink Storage Huge Storage Unit Protection Light Armor Plating Weapon Light Assault Rifle Energy Cannon Advanced Beam Cannon Ballistic Gun Light Assault Rifle Launcher Rocket Launcher Build | -11 -10 -10 -9 -9 -9 -8 ------- Run | Yrd Mat Min Mat Min Exi Min Slots Evolved 2 | . . . 2 . . . Power . | . . . . . . . Propulsion 1 | . . . 1 . . . Utility . | . . . . . . . Weapon 1 | . . . 1 . . . Parts Attached 39 | . 6 2 8 6 10 7 Power 3 | . . . 3 . . . Engine 3 | . . . 3 . . . Core . | . . . . . . . Reactor . | . . . . . . . Propulsion 8 | . . . 2 3 3 . Treads 6 | . . . . 3 3 . Leg . | . . . . . . . Wheel 2 | . . . 2 . . . Hover . | . . . . . . . Flight . | . . . . . . . Utility 11 | . 3 2 1 . 3 2 Device 2 | . . 1 1 . . . Storage 2 | . 2 . . . . . Processor . | . . . . . . . Hackware . | . . . . . . . Protection 7 | . 1 1 . . 3 2 Artifact . | . . . . . . . Weapon 17 | . 3 . 2 3 4 5 Energy Gun . | . . . . . . . Energy Cannon 7 | . 1 . 2 . 2 2 Ballistic Gun 6 | . 2 . . . 2 2 Ballistic Cannon . | . . . . . . . Launcher 4 | . . . . 3 . 1 Special Weapon . | . . . . . . . Impact Weapon . | . . . . . . . Slashing Weapon . | . . . . . . . Piercing Weapon . | . . . . . . . Special Melee Weapon . | . . . . . . . Unidentified Prototypes 3 | . . 1 2 . . . Parts Lost 26 | . . . 7 5 7 7 Power 2 | . . . 2 . . . Propulsion 9 | . . . 3 1 3 2 Utility 5 | . . . 1 . 2 2 Weapon 10 | . . . 1 4 2 3 Highest Loss Streak 6 | . . . 5 3 6 5 To Critical Strikes 5 | . . . . . 4 1 Average Slot Usage (%) 91 | . 99 100 83 81 82 95 Engine 12 | . 14 14 9 11 11 11 Treads 8 | . . . . 31 32 31 Leg 16 | . 28 28 7 . . . Wheel 2 | . . . 12 . . . Device 3 | . . . 6 11 8 . Storage 12 | . 14 14 11 11 11 11 Protection 8 | . 13 13 4 . 2 10 Energy Cannon 7 | . 6 . 16 . 4 12 Ballistic Gun 16 | . 21 28 15 . 4 17 Launcher 2 | . . . . 15 7 . Naked Turns . | . . . . . . . Heaviest Build 107 | 13 92 91 98 100 105 107 Greatest Support 60 | 20 20 20 32 60 60 60 Greatest Overweight (x) 6 | . 4 4 6 6 1 1 Average Overweight (x) 2 | . 2 4 4 1 1 1 Largest Inventory Capacity 25 | . 25 25 25 25 25 25 Average Capacity 23 | . 22 25 25 25 25 25 Most Carried 25 | . 19 20 25 25 25 13 Average Carried 19 | . 16 19 23 20 21 12 Final Capacity 25 | 8 25 25 25 25 25 25 Final Carried 25 | 6 19 20 25 20 13 10 Class Distribution -------------------- 73% | Mutant 15% | Gunner 5% | Tank 4% | Scavenger-Tank Dominant Class ---------------- Mutant | -10/Materials Mutant | -10/Mines Gunner | -9/Materials Mutant | -9/Mines Mutant | -9/Exiles Scavenger-Tank | -8/Mines Resources | -11 -10 -10 -9 -9 -9 -8 ----------- Run | Yrd Mat Min Mat Min Exi Min Matter Collected 1254 | 200 482 . 187 181 191 13 Remotely . | . . . . . . . Salvage Created 1784 | . 694 . 879 125 45 41 Parts 116 | . 43 . 50 17 . 6 Haulers Intercepted 5 | . 2 . 3 . . . Recyclers Shooed . | . . . . . . . Parts Field Recycled . | . . . . . . . Retrieved Matter . | . . . . . . . Parts Self-Destructed . | . . . . . . . Prevented . | . . . . . . . Kills | -11 -10 -10 -9 -9 -9 -8 ------- Run | Yrd Mat Min Mat Min Exi Min Combat Hostiles Destroyed 54 | . 13 . 12 23 3 3 Guns 17 | . 11 . 4 . 2 . Cannons 12 | . 2 . 7 . 1 2 AOE 24 | . . . . 23 . 1 Classes Destroyed 10 | . 8 . 1 1 . . Worker 4 | . 2 . 1 . . 1 Tunneler 2 | . 1 . . 1 . . Hauler 5 | . 2 . 3 . . . Recycler 3 | . 1 . 2 . . . Operator 2 | . 2 . . . . . Watcher 4 | . 2 . 2 . . . Swarmer 25 | . 6 . 4 12 . 3 Grunt 12 | . 7 . 5 . . . Sentry 3 | . . . 3 . . . Assembled 14 | . . . . 11 3 . Best Kill Streak 6 | . 4 . 6 5 3 4 Combat Bots Only 6 | . 3 . 6 4 3 3 Max Kills in Single Turn 4 | . 1 . 1 4 1 2 Gunslinging . | . . . . . . . Exploded 4 | . . . . 4 . 1 Melee . | . . . . . . . Uniques/NPCs Destroyed . | . . . . . . . Combat | -11 -10 -10 -9 -9 -9 -8 -------- Run | Yrd Mat Min Mat Min Exi Min Hostile Shots Fired 239 | . 52 . 80 21 74 12 Missed 49 | . 16 . 17 5 9 2 Damage Taken 3382 | . 372 . 745 468 1166 631 Core 483 | . 55 . 97 82 112 137 Absorbed by Shields . | . . . . . . . Core Remaining (%) 89 | 100 . 78 . . . . Volleys Fired 160 | . 68 . 48 12 24 8 Largest 3 | . 2 . 3 2 3 3 Hottest 156 | . 80 . 156 66 114 148 Shots Fired 337 | . 136 . 124 14 45 18 Gun 231 | . 127 . 61 . 39 4 Cannon 91 | . 9 . 63 . 6 13 Launcher 15 | . . . . 14 . 1 Special . | . . . . . . . Kinetic 231 | . 127 . 61 . 39 4 Thermal 91 | . 9 . 63 . 6 13 Explosive 15 | . . . . 14 . 1 Electromagnetic . | . . . . . . . Robot Hit Streak 20 | . 11 . 20 6 8 4 Robot Miss Streak 5 | . 5 . 4 2 2 2 Penetration Max . | . . . . . . . Secondary Targets 1 | . 1 . . . . . Max Gunslinging Chain 1 | . 1 . . . . . Shots Hit Robots 187 | . 73 . 69 4 31 10 Core Hits 109 | . 36 . 29 32 7 5 Critical Kills 2 | . 1 . 1 . . . Critical Parts Destroyed . | . . . . . . . Critical Strikes 3 | . 1 . 1 . 1 . Meltdown 1 | . . . 1 . . . Destroy 2 | . 1 . . . 1 . Melee Attacks . | . . . . . . . Impact . | . . . . . . . Slashing . | . . . . . . . Piercing . | . . . . . . . Sneak Attacks . | . . . . . . . Combat Hostiles . | . . . . . . . Follow-up Attacks . | . . . . . . . Damage Inflicted 3937 | . 840 4 1130 1095 515 353 Guns 1455 | . 714 . 340 . 393 8 Cannons 1144 | . 70 . 790 . 122 162 Explosions 1278 | . . . . 1095 . 183 Melee . | . . . . . . . Ramming 60 | . 56 4 . . . . Kinetic 1455 | . 714 . 340 . 393 8 Thermal 1144 | . 70 . 790 . 122 162 Explosive 1278 | . . . . 1095 . 183 Electromagnetic . | . . . . . . . Impact . | . . . . . . . Slashing . | . . . . . . . Piercing . | . . . . . . . Highest Corruption . | . . . . . . . Average Corruption . | . . . . . . . Corruption Purged . | . . . . . . . Corruption Blocked . | . . . . . . . Overload Shots . | . . . . . . . Overflow Damage 91 | . . . 5 83 . 3 Projectiles 8 | . . . 5 . . 3 Explosions 83 | . . . . 83 . . Melee . | . . . . . . . Knockbacks . | . . . . . . . Impact . | . . . . . . . Kinetic . | . . . . . . . Secondary . | . . . . . . . Self-Inflicted Damage 277 | . . . . 276 . 1 Shots 9 | . . . . 8 . 1 Rammed . | . . . . . . . Targets Rammed 10 | . 9 1 . . . . Kicked 10 | . 9 1 . . . . Crushed . | . . . . . . . Highest Temperature 351 | . 168 . 278 . 323 351 Average Temperature 78 | . 24 . 92 . 162 148 Received Heat Transfer 419 | . 54 . 345 20 . . Effects 3 | . . . 2 . . 1 Energy Bleed 1 | . . . . . . 1 Interference 2 | . . . 2 . . . Siege Activations . | . . . . . . . Robots Corrupted . | . . . . . . . Combat Hostiles . | . . . . . . . Parts Fried . | . . . . . . . Impact Corruptions . | . . . . . . . Robots Melted 1 | . . . 1 . . . Combat Hostiles 1 | . . . 1 . . . Parts Melted 1 | . . . 1 . . . Heat Transferred 1904 | . 148 . 1369 . 222 165 Parts Sabotaged . | . . . . . . . Parts Stolen . | . . . . . . . Parts Stripped . | . . . . . . . Power Chain Reactions . | . . . . . . . Alert | -11 -10 -10 -9 -9 -9 -8 ------- Run | Yrd Mat Min Mat Min Exi Min Peak Influence 322 | . 230 21 322 253 . 67 Initial 46 | . . 21 . 46 . . Average 84 | . 46 17 159 154 . 61 Maximum Alert Level 1 | . 1 . 1 1 . . Low Security (%) 80 | . 94 100 57 48 . 100 Level 1 19 | . 5 . 42 51 . . Level 2 . | . . . . . . . Level 3 . | . . . . . . . Level 4 . | . . . . . . . Level 5 . | . . . . . . . High Security . | . . . . . . . Max Security . | . . . . . . . Squads Dispatched 2 | . 2 . . . . . Investigation . | . . . . . . . Extermination . | . . . . . . . Reinforcement 2 | . 2 . . . . . Assault . | . . . . . . . Garrison . | . . . . . . . Intercept . | . . . . . . . Searches Triggered . | . . . . . . . Construction Impeded . | . . . . . . . Haulers Reinforced . | . . . . . . . Active Scanning Responses . | . . . . . . . Cargo Convoy Interrupts . | . . . . . . . Stealth | -11 -10 -10 -9 -9 -9 -8 --------- Run | Yrd Mat Min Mat Min Exi Min Distress Signals 5 | . 2 . 3 . . . Communications Jammed . | . . . . . . . Distress Signals . | . . . . . . . Times Spotted 89 | . 34 . 25 22 4 4 Peak Tracking Total 9 | . 3 . 6 4 9 4 Tactical Retreats 2 | . 1 . 1 . . . Traps | -11 -10 -10 -9 -9 -9 -8 ------- Run | Yrd Mat Min Mat Min Exi Min Traps Triggered 1 | . 1 . . . . . Indirectly . | . . . . . . . Trap Hack Attempts . | . . . . . . . Triggered . | . . . . . . . Disarmed . | . . . . . . . Reprogrammed . | . . . . . . . Reused . | . . . . . . . Traps Extracted . | . . . . . . . Installed . | . . . . . . . Triggered . | . . . . . . . Machines | -11 -10 -10 -9 -9 -9 -8 ---------- Run | Yrd Mat Min Mat Min Exi Min Machines Disabled 1 | . . . . . 1 . Max in Single Turn 1 | . . . . . 1 . Machines Repaired . | . . . . . . . Machines Dismantled . | . . . . . . . Machines Sabotaged . | . . . . . . . Overloaded Fab Kills . | . . . . . . . Hacking | -11 -10 -10 -9 -9 -9 -8 --------- Run | Yrd Mat Min Mat Min Exi Min Machines Accessed 11 | . 4 . 5 . 1 1 Terminals 9 | . 4 . 4 . . 1 Fabricators . | . . . . . . . Repair Stations . | . . . . . . . Recycling Units . | . . . . . . . Scanalyzers 1 | . . . 1 . . . Garrison Access . | . . . . . . . Total Hacks 28 | . 9 . 17 . 1 1 Successful 14 | . 3 . 9 . 1 1 Failed 14 | . 6 . 8 . . . Catastrophic 2 | . 2 . . . . . Database Lockouts . | . . . . . . . Manual 17 | . 9 . 6 . 1 1 Terminals 21 | . 9 . 11 . . 1 Fabricators . | . . . . . . . Repair Stations . | . . . . . . . Recycling Units . | . . . . . . . Scanalyzers 6 | . . . 6 . . . Garrison Access . | . . . . . . . Terminal Hacks 7 | . 2 . 4 . 1 . Robot Analysis 2 | . 1 . 1 . . . Prototype ID Bank 1 | . . . 1 . . . Branch Access Points 1 | . . . 1 . . . Locate Traps 2 | . 1 . 1 . . . Derelict Proto ID Bank 1 | . . . . . 1 . Fabricator Hacks . | . . . . . . . Repair Station Hacks . | . . . . . . . Recycling Unit Hacks . | . . . . . . . Scanalyzer 4 | . . . 4 . . . Insert Component 2 | . . . 2 . . . Analyze 2 | . . . 2 . . . Garrison Access Hacks . | . . . . . . . Unauthorized Hacks 3 | . 1 . 1 . . 1 Terminals 3 | . 1 . 1 . . 1 Track 1 | . . . . . . 1 Botnet 1 | . . . 1 . . . Operators 1 | . 1 . . . . . Fabricators . | . . . . . . . Repair Stations . | . . . . . . . Recycling Units . | . . . . . . . Scanalyzers . | . . . . . . . Garrison Access . | . . . . . . . Data Cores Recovered . | . . . . . . . Used . | . . . . . . . Hacking Detections 8 | . 3 . 5 . . . Full Trace Events . | . . . . . . . Feedback Events . | . . . . . . . Feedback Blocked . | . . . . . . . Robot Schematics Acquired . | . . . . . . . Robots Built . | . . . . . . . Authchips . | . . . . . . . Time . | . . . . . . . Total Robot Build Rating . | . . . . . . . Part Schematics Acquired 1 | . . . 1 . . . Parts Built . | . . . . . . . Authchips . | . . . . . . . Time . | . . . . . . . Total Part Build Rating . | . . . . . . . Parts Repaired . | . . . . . . . Time . | . . . . . . . Parts Recycled . | . . . . . . . Recycled Matter . | . . . . . . . Retrieved Matter . | . . . . . . . Retrieved Components . | . . . . . . . Parts Scanalyzed 1 | . . . 1 . . . Part Schematics Acquired 1 | . . . 1 . . . Parts Damaged 1 | . . . 1 . . . Bothacking | -11 -10 -10 -9 -9 -9 -8 ------------ Run | Yrd Mat Min Mat Min Exi Min Used RIF Installer . | . . . . . . . Robots Hacked . | . . . . . . . Non-combat . | . . . . . . . Combat . | . . . . . . . Robot Hacks Applied . | . . . . . . . Relay Couplers Released . | . . . . . . . Fabnet Peak Effective % . | . . . . . . . Robots Rewired . | . . . . . . . Allies Hacked . | . . . . . . . Hacks Repelled . | . . . . . . . Allies | -11 -10 -10 -9 -9 -9 -8 -------- Run | Yrd Mat Min Mat Min Exi Min Total Allies 3 | . . 3 . . . . Largest Group 3 | . . 3 3 . . . Highest-Rated Group 40 | . . 40 40 . . . Highest-Rated Ally 16 | . . 16 16 . . . Total Orders . | . . . . . . . Ally Attacks 19 | . . . 19 . . . Total Damage 211 | . . . 211 . . . Kills 4 | . . . 4 . . . Allies Corrupted . | . . . . . . . Allies Melted . | . . . . . . . Intel | -11 -10 -10 -9 -9 -9 -8 ------- Run | Yrd Mat Min Mat Min Exi Min Robot Analysis Total 2 | . 1 . 1 . . . Derelict Logs Recovered . | . . . . . . . Drone Launches . | . . . . . . . Drone Recoveries . | . . . . . . . Exploration | -11 -10 -10 -9 -9 -9 -8 ------------- Run | Yrd Mat Min Mat Min Exi Min Turns Passed 6020 | . 2740 474 1213 725 697 171 Spaces Moved 2075 | 1 780 117 586 292 241 58 Core . | . . . . . . . Treads 579 | . . . . 280 241 58 Legs 898 | 1 780 117 . . . . Wheels 598 | . . . 586 12 . . Hover . | . . . . . . . Flight . | . . . . . . . Fastest Speed 120 | 120 120 400 130 190 240 240 Average Speed 258 | 120 315 400 174 237 240 240 Slowest Speed 400 | 120 400 400 190 240 240 240 Overloaded Moves . | . . . . . . . Propulsion Burnouts . | . . . . . . . Robots Hopped . | . . . . . . . Cave-ins Triggered . | . . . . . . . Exploration Rate (%) 42 | 1 93 25 42 57 62 20 Regions Visited 6 Branch Regions 4 Pre-discovered Areas 1 | . . . . 1 . . Known Exits Taken 1 | . . . 1 . . . Unknown Exits Taken 5 | 1 1 1 . 1 1 . Scrap Searched 3 | . . 1 . 2 . . Spaces Dug 9 | . . . . . . 9 Terrain Destroyed 108 | . . . . 99 . 9 Melee . | . . . . . . . Projectile . | . . . . . . . AOE 108 | . . . . 99 . 9 Terrain Rammed . | . . . . . . . Walls Destroyed . | . . . . . . . Machines Disabled . | . . . . . . . Actions | -11 -10 -10 -9 -9 -9 -8 --------- Run | Yrd Mat Min Mat Min Exi Min Total 2430 | . 918 122 687 309 321 73 Wait 107 | . 44 2 23 . 38 . Move 2069 | . 779 116 585 291 240 58 Hop . | . . . . . . . Pick Up 32 | . 10 1 16 . 5 . Fast Attach 7 | . 2 . 3 . . 2 Attach 21 | . . . 5 5 8 3 Detach 1 | . 1 . . . . . Swap 11 | . 4 2 . 1 2 2 Drop 12 | . 1 . 7 . 4 . Fire 160 | . 68 . 48 12 24 8 Melee . | . . . . . . . Ram . | . . . . . . . Kick 10 | . 9 1 . . . . Crush . | . . . . . . . Escape Stasis . | . . . . . . . Rewire . | . . . . . . . Trap . | . . . . . . . Miscellaneous . | . . . . . . . Route ------- -11/Scrapyard -10/Materials (discovered 5 exits: *Mat x3 / [*Min x2]) -10/Mines -9/Materials (discovered 3 exits: [*Mat] / *Min x2) -9/Mines (discovered 2 exits: [*Mat] / *Exi) -9/Exiles -8/Mines History --------- Turn | Location | Event 1 | -11/Scrapyard | Discovered new exit (range 0) 1 | -11/Scrapyard | Entered Materials 279 | -10/Materials | Discovered new exit (range 7) 309 | -10/Materials | Build established: Mutant 727 | -10/Materials | Discovered new exit (range 14) 1308 | -10/Materials | Discovered new exit (range 6) 1580 | -10/Materials | Discovered new exit (range 16) 2322 | -10/Materials | Discovered new exit (range 6) 2741 | -10/Materials | Entered Mines 2989 | -10/Mines | Found a damaged Exp. Sensor Array with a note attached 2997 | -10/Mines | Found Prototype Device 2998 | -10/Mines | Identified Exp. Sensor Array 3065 | -10/Mines | Discovered new exit (range 4) 3081 | -10/Mines | Assisted by bots powering up and referring to "LRC-V3" 3215 | -10/Mines | Entered Materials 3215 | -9/Materials | Accompanied by 3 allies 3215 | -9/Materials | Evolved 2 slots: Propulsion x1, Weapon x1 3421 | -9/Materials | Discovered new exit (range 7) 3593 | -9/Materials | Build established: Tank 3720 | -9/Materials | Lost 5 parts (1p2n1u1w) 3759 | -9/Materials | Identified exit to Mines 3917 | -9/Materials | Discovered new exit (range 10) 3958 | -9/Materials | Build established: Gunner 4428 | -9/Materials | Entered Mines 4488 | -9/Mines | Lost 3 parts (1n2w) 4600 | -9/Mines | Assembled infested the area 5027 | -9/Mines | Discovered new exit (range 13) 5030 | -9/Mines | Learned location of Storage (-8) 5048 | -9/Mines | Build established: Mutant 5144 | -9/Mines | Deemed a non-threat by the Exiles lab entrance 5144 | -9/Mines | Discovered new exit (range 5) 5153 | -9/Mines | Entered Exiles 5221 | -9/Exiles | Met 8R-AWN 5262 | -9/Exiles | Met EX-HEX 5324 | -9/Exiles | Met EX-BIN 5356 | -9/Exiles | Aligned with FarCom system 5358 | -9/Exiles | Given EX-Vault access code 5413 | -9/Exiles | Opened EX-Vault 5466 | -9/Exiles | Warned to stay clear of 0b10 Research branches 5536 | -9/Exiles | Met EX-DEC 5668 | -9/Exiles | Attacked by the Exiles 5776 | -9/Exiles | Core integrity fell below 50% 5827 | -9/Exiles | Discovered new exit (range 10) 5830 | -9/Exiles | Lost 6 parts (3n1u2w) 5850 | -9/Exiles | Entered Mines 5898 | -8/Mines | Lost 3 parts (1u2w) 6003 | -8/Mines | CL-ANK came to Exiles' defense 6021 | -8/Mines | Destroyed by CL-ANK with CL-ANK's Mallet Last Messages --------------- 05884_ Acquired Lgt. Assault Rifle. 05885_ Acquired 9 matter. 05899_ K-01 Serf collects debris. 06000_ T-07 Excavator suffers critical hit (Smash). 06000_ T-07 Excavator destroyed. 06000_ K-01 Serf collects debris. 06003_ CL-ANK: "I came as fast as I could... Wait, it was you!" 06003_ K-01 Serf suffers critical hit (Smash). 06003_ K-01 Serf destroyed. 06004_ K-01 Serf collects debris. 06015_ Critical hit (Smash). 06015_ Lgt. Treads destroyed. 06015_ K-01 Serf collects debris. 06016_ Lgt. Treads destroyed. 06016_ Med. Armor Plating destroyed. 06018_ Adv. Beam Cannon destroyed. 06019_ K-01 Serf collects debris. 06019_ Critical hit (Smash). 06019_ Med. Armor Plating destroyed. 06020_ Overheating: Energy bleed (-54). Map ----- +----------------------------------------------------+ | ???????????????## ##???## #????????? | | ???????????????# #???# #????????? | | ???????????????# ???## #????????? | | ???????????????# ???## ##???????? | | ?#######????????# #??## #???????? | | ?# #????????# #### #???????? | | ?# ##??????## ## ##???????? | | ?# #?????## ##????????? | | ?# #????## ####?????????? | | ## ####?# ##????????????? | | #T = ### ##?????????????? | | ## =%% #####??????????????? | | ?###* ### ### ##??????????????????? | | ???#####?# ### ###???????????????????? | | ?????????# #?????????????????????? | | ?????????##### #?????????????????????? | | ?????????????# #?????????????????????? | | ?????????????# #?????????????????????? | | ?????????????# #?????????????????????? | | ?????????????# ##????????????????????? | | ?????????????# #????????????????????? | | ?????????????## #?##?????????????????? | | ???????????#### # ##????????????????? | | ??????????## #????????????????? | | ??????????# k #????????????????? | | ??????????# @ ##???????????????? | | ??????????# b #???????????????? | | ??????????# #???????????????? | | ?????????# ##???????????????? | | ????????# ##????????????????? | | ????????# ######?????????????????? | | ????????# ##??????????????????????? | | ????????# !#???????????????????????? | | ????????# =k%???????????????????????? | | ????????# !???????????????????????? | | ????????# ???????????????????????? | | ????????## ??????????????????????? | | ?????????# ??????????????????????? | | ?????????# ??????????????????????? | | ?????????# ??????????????????????? | | ?????????## ?????????????????????? | | ??????????? ?????????????????????? | | ??????????? ???????????????????????? | | ??????????????????????????????????????? | | ??????????????????????????????????????? | | ??????????????????????????????????????? | | ??????????????????????????????????????? | | ??????????????????????????????????????? | | ??????????????????????????????????????? | | ??????????????????????????????????????? | +----------------------------------------------------+ Best States ------------- Heat Dissipation 42 Energy Generation 14 Energy Capacity 280 Matter Stores 300 Matter Capacity 300 Sight Range 16 Robot Scan Range 20 Terrain Scan Density 10 Armor Coverage 225 Evasion (%) 55 Recoil Reduction 3 Item Schematics ----------------- Exp. Sensor Array | -9/Materials | Scanalyzed Robot Schematics ------------------ None Fabricated ------------ Nothing Alien Tech Used ----------------- None Achievements -------------- None Challenges ------------ None Game ------ Seed NeutrinoDiametricDoublenader Manual? 0 Play Time 00:18:22 Cumulative 246.6 hours Start 2024.05.29 @ 19:26:07 End 2024.05.29 @ 19:43:20 Sessions 1 Manual Loads 0 Difficulty Rogue Special Mode None Game No. 305 Rogue 305 Adventurer 0 Explorer 0 Win Type - Total 9 Types 5/1/0/1/1/0/0/1/0 Lore% 73 Gallery% 81 Achievement% 70 Wizard Run 0 Options --------- Layout 0 ASCII 0 Keyboard 0 Movement Numpad Keybinds 0 Fullscreen 1 Font 18/SmallcapsGlow Map View 76x50 Zoom Use 0% Tactical HUD 1 Map Filters NONE Filters NONE Steam 1 RUN: 4a2b333b-3462-4b08-b50e-222251fb1c69